[Event "Titled Tuesday Blitz June 20 Early 2023"]
[White "Ovchinnikov, Vsevolod"]
[Black "Oro, Faustino"]
[WhiteFideId "24176842"]
[BlackFideId "20000197"]
[WhiteElo "2376"]
[BlackElo "1984"]
[Result "1-0"]
[Round "8"]
[TimeControl "180+2"]
[Date "2023.06.20"]
[WhiteClock "0:00:06"]
[BlackClock "0:00:00"]
[Board "62"]

1. d4 {[%clk 0:03:00]}  Nf6 {[%clk 0:02:59]} 2. c4 {[%clk 0:03:01]}  e6 {[%clk 0:03:00]} 3. g3 {[%clk 0:03:01]}  d5 {[%clk 0:02:58]} 4. Bg2 {[%clk 0:03:02]}  Be7 {[%clk 0:02:59]} 5. Nf3 {[%clk 0:03:02]}  O-O {[%clk 0:03:00]} 6. Nc3 {[%clk 0:03:03]}  dxc4 {[%clk 0:02:58]} 7. Ne5 {[%clk 0:03:03]}  Nc6 {[%clk 0:02:53]} 8. Bxc6 {[%clk 0:03:04]}  bxc6 {[%clk 0:02:54]} 9. Nxc6 {[%clk 0:03:05]}  Qe8 {[%clk 0:02:54]} 10. Nxe7+ {[%clk 0:03:05]}  Qxe7 {[%clk 0:02:55]} 11. Qa4 {[%clk 0:03:05]}  c5 {[%clk 0:02:44]} 12. dxc5 {[%clk 0:03:06]}  Qxc5 {[%clk 0:02:40]} 13. Be3 {[%clk 0:03:07]}  Qe7 {[%clk 0:02:40]} 14. O-O {[%clk 0:03:01]}  Bb7 {[%clk 0:02:39]} 15. Rad1 {[%clk 0:02:56]}  Rfc8 {[%clk 0:02:28]} 16. f3 {[%clk 0:02:53]}  Nd5 {[%clk 0:02:24]} 17. Bd4 {[%clk 0:02:52]}  e5 {[%clk 0:02:13]} 18. Nxd5 {[%clk 0:02:52]}  Bxd5 {[%clk 0:02:14]} 19. Bc3 {[%clk 0:02:53]}  Bc6 {[%clk 0:02:14]} 20. Qa5 {[%clk 0:02:51]}  e4 {[%clk 0:02:06]} 21. Qe5 {[%clk 0:02:45]}  Qf8 {[%clk 0:01:52]} 22. Rd4 {[%clk 0:02:25]}  f6 {[%clk 0:01:26]} 23. Qe6+ {[%clk 0:01:55]}  Kh8 {[%clk 0:01:26]} 24. fxe4 {[%clk 0:01:52]}  Qc5 {[%clk 0:00:59]} 25. Qxc4 {[%clk 0:01:34]}  Qb6 {[%clk 0:00:55]} 26. Qb4 {[%clk 0:01:34]}  Bb5 {[%clk 0:00:55]} 27. Rf2 {[%clk 0:01:23]}  Re8 {[%clk 0:00:52]} 28. Rd6 {[%clk 0:01:01]}  Qc7 {[%clk 0:00:32]} 29. e5 {[%clk 0:00:18]}  fxe5 {[%clk 0:00:26]} 30. Rd5 {[%clk 0:00:19]}  Bc6 {[%clk 0:00:25]} 31. Qd6 {[%clk 0:00:19]}  Qb7 {[%clk 0:00:21]} 32. Rxe5 {[%clk 0:00:16]}  Red8 {[%clk 0:00:22]} 33. Ref5 {[%clk 0:00:09]}  Qc8 {[%clk 0:00:15]} 34. Qc5 {[%clk 0:00:05]}  Qd7 {[%clk 0:00:13]} 35. Rf1 {[%clk 0:00:04]}  Be4 {[%clk 0:00:12]} 36. Rf7 {[%clk 0:00:04]}  Qd5 {[%clk 0:00:12]} 37. Qxd5 {[%clk 0:00:03]}  Bxd5 {[%clk 0:00:12]} 38. Rxg7 {[%clk 0:00:04]}  Rac8 {[%clk 0:00:10]} 39. Rc7+ {[%clk 0:00:04]}  Kg8 {[%clk 0:00:10]} 40. Rxc8 {[%clk 0:00:04]}  Rxc8 {[%clk 0:00:10]} 41. a3 {[%clk 0:00:05]}  Re8 {[%clk 0:00:09]} 42. Kf2 {[%clk 0:00:05]}  Bc4 {[%clk 0:00:10]} 43. Re1 {[%clk 0:00:05]}  Rf8+ {[%clk 0:00:11]} 44. Kg1 {[%clk 0:00:06]}  Re8 {[%clk 0:00:11]} 45. e4 {[%clk 0:00:07]}  Kf7 {[%clk 0:00:12]} 46. e5 {[%clk 0:00:07]}  Ke6 {[%clk 0:00:13]} 47. Kf2 {[%clk 0:00:08]}  Rf8+ {[%clk 0:00:12]} 48. Ke3 {[%clk 0:00:08]}  Bd5 {[%clk 0:00:13]} 49. Re2 {[%clk 0:00:09]}  Rf3+ {[%clk 0:00:13]} 50. Kd4 {[%clk 0:00:10]}  Rf1 {[%clk 0:00:13]} 51. Kc5 {[%clk 0:00:09]}  a6 {[%clk 0:00:12]} 52. Kb6 {[%clk 0:00:09]}  Rd1 {[%clk 0:00:11]} 53. Rf2 {[%clk 0:00:08]}  Bc4 {[%clk 0:00:10]} 54. Rf6+ {[%clk 0:00:08]}  Ke7 {[%clk 0:00:11]} 55. Rh6 {[%clk 0:00:09]}  Bd3 {[%clk 0:00:10]} 56. a4 {[%clk 0:00:08]}  Bg6 {[%clk 0:00:09]} 57. a5 {[%clk 0:00:08]}  Bd3 {[%clk 0:00:05]} 58. Rd6 {[%clk 0:00:07]}  Kf7 {[%clk 0:00:04]} 59. Ka7 {[%clk 0:00:06]}  Ke7 {[%clk 0:00:00]} 60. g4 {[%clk 0:00:06]} 1-0


[Site "https://www.chess.com"]

[Event "Titled Tuesday Blitz June 20 Early 2023"]
[White "Subelj, Jan"]
[Black "Cherniaiev, Tykhon"]
[WhiteFideId "14618583"]
[BlackFideId "14182360"]
[WhiteElo "2499"]
[BlackElo "2450"]
[Result "1-0"]
[Round "8"]
[TimeControl "180+2"]
[Date "2023.06.20"]
[WhiteClock "0:00:06"]
[BlackClock "0:00:05"]
[Board "63"]

1. e4 {[%clk 0:02:41]}  e5 {[%clk 0:02:52]} 2. Nf3 {[%clk 0:02:40]}  Nc6 {[%clk 0:02:52]} 3. Bb5 {[%clk 0:02:39]}  Nge7 {[%clk 0:02:50]} 4. Nc3 {[%clk 0:02:38]}  a6 {[%clk 0:02:49]} 5. Bc4 {[%clk 0:02:37]}  Ng6 {[%clk 0:02:45]} 6. h4 {[%clk 0:02:37]}  d6 {[%clk 0:02:21]} 7. Ng5 {[%clk 0:02:28]}  Be6 {[%clk 0:02:21]} 8. Nxe6 {[%clk 0:02:21]}  fxe6 {[%clk 0:02:21]} 9. h5 {[%clk 0:02:10]}  Nge7 {[%clk 0:01:57]} 10. Bxe6 {[%clk 0:02:08]}  Nd4 {[%clk 0:01:56]} 11. Bh3 {[%clk 0:02:04]}  g6 {[%clk 0:01:53]} 12. d3 {[%clk 0:01:59]}  Bg7 {[%clk 0:01:43]} 13. Bg5 {[%clk 0:01:58]}  h6 {[%clk 0:01:22]} 14. Bxe7 {[%clk 0:01:58]}  Qxe7 {[%clk 0:01:23]} 15. Nd5 {[%clk 0:01:58]}  Qd8 {[%clk 0:01:22]} 16. c3 {[%clk 0:01:51]}  Nc6 {[%clk 0:01:13]} 17. Qg4 {[%clk 0:01:51]}  O-O {[%clk 0:01:06]} 18. Qxg6 {[%clk 0:01:48]}  Kh8 {[%clk 0:00:57]} 19. Bf5 {[%clk 0:01:48]}  Rxf5 {[%clk 0:00:55]} 20. exf5 {[%clk 0:01:46]}  Ne7 {[%clk 0:00:51]} 21. Nxe7 {[%clk 0:01:45]}  Qxe7 {[%clk 0:00:52]} 22. Rh3 {[%clk 0:01:45]}  Rf8 {[%clk 0:00:49]} 23. Rg3 {[%clk 0:01:45]}  Rf6 {[%clk 0:00:48]} 24. Qg4 {[%clk 0:01:45]}  Qf7 {[%clk 0:00:47]} 25. O-O-O {[%clk 0:01:33]}  Rxf5 {[%clk 0:00:46]} 26. f3 {[%clk 0:01:30]}  Rg5 {[%clk 0:00:42]} 27. Qc8+ {[%clk 0:01:30]}  Kh7 {[%clk 0:00:41]} 28. Rxg5 {[%clk 0:01:30]}  hxg5 {[%clk 0:00:42]} 29. Qxb7 {[%clk 0:01:15]}  Qxa2 {[%clk 0:00:38]} 30. Qe4+ {[%clk 0:01:13]}  Kh8 {[%clk 0:00:37]} 31. Kc2 {[%clk 0:01:09]}  d5 {[%clk 0:00:36]} 32. Qg6 {[%clk 0:01:08]}  Qa4+ {[%clk 0:00:35]} 33. Kd2 {[%clk 0:01:08]}  Qh4 {[%clk 0:00:23]} 34. Kc1 {[%clk 0:00:50]}  Qf4+ {[%clk 0:00:11]} 35. Kb1 {[%clk 0:00:49]}  Qh4 {[%clk 0:00:11]} 36. g3 {[%clk 0:00:18]}  Qh2 {[%clk 0:00:04]} 37. Qxg5 {[%clk 0:00:16]}  Qe2 {[%clk 0:00:05]} 38. Rd2 {[%clk 0:00:15]}  Qxf3 {[%clk 0:00:04]} 39. h6 {[%clk 0:00:14]}  Bf6 {[%clk 0:00:05]} 40. Qg6 {[%clk 0:00:14]}  Qh1+ {[%clk 0:00:01]} 41. Kc2 {[%clk 0:00:14]}  Qf3 {[%clk 0:00:01]} 42. h7 {[%clk 0:00:14]}  Bg7 {[%clk 0:00:01]} 43. Rh2 {[%clk 0:00:13]}  Qf8 {[%clk 0:00:01]} 44. Qe6 {[%clk 0:00:13]}  e4 {[%clk 0:00:01]} 45. Qg8+ {[%clk 0:00:12]}  Qxg8 {[%clk 0:00:02]} 46. hxg8=Q+ {[%clk 0:00:13]}  Kxg8 {[%clk 0:00:02]} 47. dxe4 {[%clk 0:00:14]}  dxe4 {[%clk 0:00:03]} 48. Re2 {[%clk 0:00:14]}  Kf7 {[%clk 0:00:03]} 49. Rxe4 {[%clk 0:00:15]}  Bf6 {[%clk 0:00:03]} 50. Ra4 {[%clk 0:00:15]}  Be5 {[%clk 0:00:04]} 51. Rxa6 {[%clk 0:00:16]}  Bxg3 {[%clk 0:00:04]} 52. Rc6 {[%clk 0:00:17]}  Ke7 {[%clk 0:00:05]} 53. Kd3 {[%clk 0:00:17]}  Kd7 {[%clk 0:00:06]} 54. Rg6 {[%clk 0:00:18]}  Bd6 {[%clk 0:00:06]} 55. Kc4 {[%clk 0:00:18]}  Bf4 {[%clk 0:00:06]} 56. b4 {[%clk 0:00:18]}  Bd2 {[%clk 0:00:05]} 57. Rg3 {[%clk 0:00:17]}  Be1 {[%clk 0:00:05]} 58. Rd3+ {[%clk 0:00:13]}  Kc6 {[%clk 0:00:05]} 59. Re3 {[%clk 0:00:14]}  Bf2 {[%clk 0:00:05]} 60. Re6+ {[%clk 0:00:15]}  Kd7 {[%clk 0:00:05]} 61. Rg6 {[%clk 0:00:15]}  Be1 {[%clk 0:00:05]} 62. b5 {[%clk 0:00:15]}  Bd2 {[%clk 0:00:05]} 63. Kd4 {[%clk 0:00:15]}  Be1 {[%clk 0:00:05]} 64. c4 {[%clk 0:00:16]}  Bf2+ {[%clk 0:00:04]} 65. Kd5 {[%clk 0:00:16]}  Kc8 {[%clk 0:00:04]} 66. c5 {[%clk 0:00:16]}  Kb7 {[%clk 0:00:05]} 67. Rg7 {[%clk 0:00:16]}  Be3 {[%clk 0:00:05]} 68. b6 {[%clk 0:00:15]}  Bf4 {[%clk 0:00:06]} 69. Rf7 {[%clk 0:00:09]}  Bh2 {[%clk 0:00:06]} 70. Kc4 {[%clk 0:00:08]}  Kc6 {[%clk 0:00:05]} 71. Rf6+ {[%clk 0:00:08]}  Kb7 {[%clk 0:00:06]} 72. Kb5 {[%clk 0:00:08]}  Bg3 {[%clk 0:00:05]} 73. c6+ {[%clk 0:00:06]}  Kc8 {[%clk 0:00:05]} 74. Rf8# {[%clk 0:00:06]} 1-0


[Site "https://www.chess.com"]

[Event "Titled Tuesday Blitz June 20 Early 2023"]
[White "Sebag, Marie"]
[Black "Atakhan, Abtin"]
[WhiteFideId "617822"]
[BlackFideId "22502203"]
[WhiteElo "2431"]
[BlackElo "2008"]
[Result "0-1"]
[Round "8"]
[TimeControl "180+2"]
[Date "2023.06.20"]
[WhiteClock "0:00:00"]
[BlackClock "0:00:04"]
[Board "66"]

1. e4 {[%clk 0:02:56]}  c5 {[%clk 0:02:56]} 2. Nc3 {[%clk 0:02:55]}  Nc6 {[%clk 0:02:56]} 3. Bb5 {[%clk 0:02:54]}  Nd4 {[%clk 0:02:56]} 4. Bc4 {[%clk 0:02:54]}  e6 {[%clk 0:02:57]} 5. Nge2 {[%clk 0:02:54]}  a6 {[%clk 0:02:54]} 6. d3 {[%clk 0:02:44]}  b5 {[%clk 0:02:49]} 7. Bb3 {[%clk 0:02:43]}  Ne7 {[%clk 0:02:48]} 8. O-O {[%clk 0:02:39]}  Nec6 {[%clk 0:02:47]} 9. f4 {[%clk 0:02:38]}  Be7 {[%clk 0:02:38]} 10. Be3 {[%clk 0:02:37]}  Bb7 {[%clk 0:02:37]} 11. Bf2 {[%clk 0:02:36]}  O-O {[%clk 0:02:35]} 12. Nxd4 {[%clk 0:02:35]}  Nxd4 {[%clk 0:02:31]} 13. Ne2 {[%clk 0:02:31]}  Nxb3 {[%clk 0:02:31]} 14. axb3 {[%clk 0:02:31]}  f5 {[%clk 0:02:32]} 15. e5 {[%clk 0:02:24]}  Kh8 {[%clk 0:02:21]} 16. Be3 {[%clk 0:02:16]}  Qc7 {[%clk 0:02:19]} 17. Qe1 {[%clk 0:02:15]}  Rg8 {[%clk 0:02:13]} 18. Qg3 {[%clk 0:02:09]}  g6 {[%clk 0:02:06]} 19. Kh1 {[%clk 0:02:05]}  Rg7 {[%clk 0:02:05]} 20. Ng1 {[%clk 0:02:04]}  Rag8 {[%clk 0:01:58]} 21. Nf3 {[%clk 0:02:04]}  Qc6 {[%clk 0:01:47]} 22. Qh3 {[%clk 0:02:02]}  Rc8 {[%clk 0:01:35]} 23. Bf2 {[%clk 0:02:01]}  h6 {[%clk 0:01:25]} 24. Bh4 {[%clk 0:01:53]}  Bxh4 {[%clk 0:01:21]} 25. Qxh4 {[%clk 0:01:52]}  Kh7 {[%clk 0:01:10]} 26. Rf2 {[%clk 0:01:46]}  c4 {[%clk 0:00:36]} 27. bxc4 {[%clk 0:01:43]}  bxc4 {[%clk 0:00:37]} 28. d4 {[%clk 0:01:43]}  Rgg8 {[%clk 0:00:24]} 29. c3 {[%clk 0:01:32]}  Rcf8 {[%clk 0:00:16]} 30. Qe7+ {[%clk 0:01:15]}  Kh8 {[%clk 0:00:16]} 31. h3 {[%clk 0:01:15]}  Qc8 {[%clk 0:00:14]} 32. Nd2 {[%clk 0:01:03]}  Rg7 {[%clk 0:00:14]} 33. Qh4 {[%clk 0:01:02]}  Rh7 {[%clk 0:00:14]} 34. Nf3 {[%clk 0:00:48]}  g5 {[%clk 0:00:14]} 35. fxg5 {[%clk 0:00:46]}  hxg5 {[%clk 0:00:14]} 36. Qxg5 {[%clk 0:00:47]}  Rg8 {[%clk 0:00:15]} 37. Qf6+ {[%clk 0:00:45]}  Rgg7 {[%clk 0:00:16]} 38. Ng5 {[%clk 0:00:41]}  Rh5 {[%clk 0:00:14]} 39. Nf7+ {[%clk 0:00:33]}  Kg8 {[%clk 0:00:14]} 40. Nd6 {[%clk 0:00:30]}  Qc6 {[%clk 0:00:07]} 41. Nxb7 {[%clk 0:00:22]}  Rxh3+ {[%clk 0:00:08]} 42. Kg1 {[%clk 0:00:21]}  Qxb7 {[%clk 0:00:09]} 43. Qxg7+ {[%clk 0:00:18]}  Kxg7 {[%clk 0:00:09]} 44. gxh3 {[%clk 0:00:18]}  Qe4 {[%clk 0:00:08]} 45. Kh2 {[%clk 0:00:18]}  Kf7 {[%clk 0:00:04]} 46. Rg1 {[%clk 0:00:17]}  Ke7 {[%clk 0:00:04]} 47. Rfg2 {[%clk 0:00:17]}  Qf4+ {[%clk 0:00:04]} 48. Kh1 {[%clk 0:00:17]}  Kd8 {[%clk 0:00:05]} 49. Rg8+ {[%clk 0:00:13]}  Kc7 {[%clk 0:00:06]} 50. R8g2 {[%clk 0:00:13]}  Qf3 {[%clk 0:00:06]} 51. Kh2 {[%clk 0:00:13]}  Qf4+ {[%clk 0:00:07]} 52. Rg3 {[%clk 0:00:13]}  Kc6 {[%clk 0:00:07]} 53. Rg2 {[%clk 0:00:13]}  Kb5 {[%clk 0:00:07]} 54. Kg1 {[%clk 0:00:12]}  Ka4 {[%clk 0:00:06]} 55. Rg7 {[%clk 0:00:11]}  d6 {[%clk 0:00:03]} 56. exd6 {[%clk 0:00:09]}  Qxd6 {[%clk 0:00:04]} 57. Rb7 {[%clk 0:00:09]}  a5 {[%clk 0:00:03]} 58. Kh1 {[%clk 0:00:08]}  Qf4 {[%clk 0:00:03]} 59. Rb6 {[%clk 0:00:06]}  Qf1+ {[%clk 0:00:03]} 60. Kh2 {[%clk 0:00:06]}  Qf4+ {[%clk 0:00:04]} 61. Kg1 {[%clk 0:00:05]}  Qe3+ {[%clk 0:00:04]} 62. Kh2 {[%clk 0:00:05]}  e5 {[%clk 0:00:04]} 63. Rg1 {[%clk 0:00:05]}  Qf2+ {[%clk 0:00:04]} 64. Kh1 {[%clk 0:00:05]}  Qf3+ {[%clk 0:00:04]} 65. Kh2 {[%clk 0:00:04]}  Qf2+ {[%clk 0:00:04]} 66. Rg2 {[%clk 0:00:05]}  Qf4+ {[%clk 0:00:04]} 67. Kh1 {[%clk 0:00:05]}  exd4 {[%clk 0:00:05]} 68. cxd4 {[%clk 0:00:05]}  Qxd4 {[%clk 0:00:04]} 69. Rb8 {[%clk 0:00:04]}  Qd1+ {[%clk 0:00:03]} 70. Rg1 {[%clk 0:00:02]}  Qf3+ {[%clk 0:00:04]} 71. Kh2 {[%clk 0:00:00]}  Qf4+ {[%clk 0:00:04]} 0-1


[Site "https://www.chess.com"]

[Event "Titled Tuesday Blitz June 20 Early 2023"]
[White "Amilal Munkhdalai"]
[Black "Girya, Olga"]
[WhiteFideId "4903250"]
[BlackFideId "4195752"]
[WhiteElo "2293"]
[BlackElo "2263"]
[Result "1-0"]
[Round "8"]
[TimeControl "180+2"]
[Date "2023.06.20"]
[WhiteClock "0:01:21"]
[BlackClock "0:00:04"]
[Board "67"]

1. e4 {[%clk 0:02:59]}  e5 {[%clk 0:02:59]} 2. Nf3 {[%clk 0:02:59]}  Nc6 {[%clk 0:02:59]} 3. Bb5 {[%clk 0:02:59]}  a6 {[%clk 0:03:00]} 4. Ba4 {[%clk 0:02:59]}  Nf6 {[%clk 0:03:00]} 5. d3 {[%clk 0:02:59]}  Bc5 {[%clk 0:02:59]} 6. c3 {[%clk 0:02:58]}  d6 {[%clk 0:02:56]} 7. O-O {[%clk 0:02:57]}  O-O {[%clk 0:02:55]} 8. Re1 {[%clk 0:02:57]}  Ba7 {[%clk 0:02:48]} 9. h3 {[%clk 0:02:57]}  h6 {[%clk 0:02:48]} 10. d4 {[%clk 0:02:56]}  exd4 {[%clk 0:02:36]} 11. cxd4 {[%clk 0:02:56]}  d5 {[%clk 0:02:37]} 12. e5 {[%clk 0:02:54]}  Ne4 {[%clk 0:02:37]} 13. Nc3 {[%clk 0:02:52]}  Bf5 {[%clk 0:02:36]} 14. Bc2 {[%clk 0:02:45]}  Nxc3 {[%clk 0:01:52]} 15. bxc3 {[%clk 0:02:44]}  Bxc2 {[%clk 0:01:47]} 16. Qxc2 {[%clk 0:02:44]}  Ne7 {[%clk 0:01:44]} 17. e6 {[%clk 0:02:32]}  Qd6 {[%clk 0:01:30]} 18. exf7+ {[%clk 0:02:29]}  Rxf7 {[%clk 0:01:30]} 19. Ne5 {[%clk 0:02:29]}  Rf6 {[%clk 0:01:20]} 20. a4 {[%clk 0:02:24]}  c5 {[%clk 0:01:16]} 21. Ba3 {[%clk 0:02:23]}  Nc6 {[%clk 0:01:14]} 22. Nd3 {[%clk 0:02:19]}  b6 {[%clk 0:01:09]} 23. Re2 {[%clk 0:02:07]}  Na5 {[%clk 0:01:08]} 24. Rae1 {[%clk 0:02:00]}  Raf8 {[%clk 0:01:08]} 25. Ne5 {[%clk 0:01:46]}  h5 {[%clk 0:00:41]} 26. h4 {[%clk 0:01:39]}  Bb8 {[%clk 0:00:40]} 27. g3 {[%clk 0:01:39]}  Nc4 {[%clk 0:00:35]} 28. Bc1 {[%clk 0:01:36]}  Rf5 {[%clk 0:00:13]} 29. Nxc4 {[%clk 0:01:23]}  dxc4 {[%clk 0:00:14]} 30. Re8 {[%clk 0:01:22]}  cxd4 {[%clk 0:00:04]} 31. Qxf5 {[%clk 0:01:21]} 1-0


[Site "https://www.chess.com"]

[Event "Titled Tuesday Blitz June 20 Early 2023"]
[White "Munkhgal, Gombosuren"]
[Black "Mamedov, Edgar"]
[WhiteFideId "4901266"]
[BlackFideId "13739980"]
[WhiteElo "2528"]
[BlackElo "2317"]
[Result "1-0"]
[Round "8"]
[TimeControl "180+2"]
[Date "2023.06.20"]
[WhiteClock "0:00:33"]
[BlackClock "0:00:00"]
[Board "71"]

1. d4 {[%clk 0:02:52]}  d5 {[%clk 0:02:59]} 2. Bf4 {[%clk 0:02:53]}  Nf6 {[%clk 0:02:57]} 3. e3 {[%clk 0:02:53]}  e6 {[%clk 0:02:56]} 4. Nf3 {[%clk 0:02:53]}  Bd6 {[%clk 0:02:56]} 5. Ne5 {[%clk 0:02:54]}  O-O {[%clk 0:02:55]} 6. Nd2 {[%clk 0:02:54]}  b6 {[%clk 0:02:54]} 7. h4 {[%clk 0:02:54]}  c5 {[%clk 0:02:53]} 8. c3 {[%clk 0:02:53]}  Ba6 {[%clk 0:02:49]} 9. Bxa6 {[%clk 0:02:52]}  Nxa6 {[%clk 0:02:49]} 10. h5 {[%clk 0:02:53]}  h6 {[%clk 0:02:45]} 11. Qf3 {[%clk 0:02:52]}  cxd4 {[%clk 0:02:39]} 12. exd4 {[%clk 0:02:52]}  Qc7 {[%clk 0:02:33]} 13. Qe2 {[%clk 0:02:52]}  Nb8 {[%clk 0:02:29]} 14. g4 {[%clk 0:02:52]}  Nbd7 {[%clk 0:02:22]} 15. f3 {[%clk 0:02:48]}  Ne8 {[%clk 0:02:12]} 16. Nxd7 {[%clk 0:02:40]}  Qxd7 {[%clk 0:02:11]} 17. Bxd6 {[%clk 0:02:38]}  Nxd6 {[%clk 0:02:10]} 18. Qe3 {[%clk 0:02:37]}  Rae8 {[%clk 0:02:07]} 19. O-O-O {[%clk 0:02:37]}  b5 {[%clk 0:02:03]} 20. Rdg1 {[%clk 0:02:36]}  f6 {[%clk 0:02:01]} 21. Nb3 {[%clk 0:02:36]}  e5 {[%clk 0:01:53]} 22. Nc5 {[%clk 0:02:36]}  Qe7 {[%clk 0:01:51]} 23. Re1 {[%clk 0:02:31]}  a5 {[%clk 0:01:25]} 24. Re2 {[%clk 0:02:22]}  Qc7 {[%clk 0:01:14]} 25. Rhe1 {[%clk 0:02:19]}  Nc4 {[%clk 0:01:08]} 26. Qd3 {[%clk 0:02:18]}  b4 {[%clk 0:00:51]} 27. b3 {[%clk 0:02:14]}  Nb6 {[%clk 0:00:46]} 28. cxb4 {[%clk 0:02:13]}  axb4 {[%clk 0:00:46]} 29. Qb5 {[%clk 0:02:13]}  Rb8 {[%clk 0:00:41]} 30. Rc2 {[%clk 0:02:10]}  Nc4 {[%clk 0:00:33]} 31. Qa6 {[%clk 0:02:09]}  Rb6 {[%clk 0:00:26]} 32. Qa4 {[%clk 0:01:55]}  Na3 {[%clk 0:00:25]} 33. Ree2 {[%clk 0:01:29]}  Nxc2 {[%clk 0:00:22]} 34. Rxc2 {[%clk 0:01:30]}  Qc6 {[%clk 0:00:19]} 35. Nd7 {[%clk 0:01:24]}  Qxa4 {[%clk 0:00:12]} 36. bxa4 {[%clk 0:01:25]}  Ra6 {[%clk 0:00:03]} 37. Nxf8 {[%clk 0:01:25]}  Kxf8 {[%clk 0:00:03]} 38. dxe5 {[%clk 0:01:17]}  fxe5 {[%clk 0:00:03]} 39. Rc5 {[%clk 0:01:17]}  Rxa4 {[%clk 0:00:03]} 40. Kb2 {[%clk 0:01:18]}  Ra3 {[%clk 0:00:03]} 41. Rxd5 {[%clk 0:01:19]}  Rxf3 {[%clk 0:00:02]} 42. Rxe5 {[%clk 0:01:19]}  Rf2+ {[%clk 0:00:01]} 43. Kb3 {[%clk 0:01:19]}  Rg2 {[%clk 0:00:01]} 44. Re4 {[%clk 0:01:19]}  Kf7 {[%clk 0:00:01]} 45. Rxb4 {[%clk 0:01:19]}  Kf6 {[%clk 0:00:02]} 46. a4 {[%clk 0:01:20]}  Rg3+ {[%clk 0:00:02]} 47. Ka2 {[%clk 0:01:19]}  Rg2+ {[%clk 0:00:02]} 48. Ka3 {[%clk 0:01:20]}  Rg3+ {[%clk 0:00:02]} 49. Kb2 {[%clk 0:01:18]}  Rg2+ {[%clk 0:00:02]} 50. Kb1 {[%clk 0:01:06]}  Rg1+ {[%clk 0:00:02]} 51. Kc2 {[%clk 0:01:06]}  Rg2+ {[%clk 0:00:02]} 52. Kd3 {[%clk 0:01:06]}  Rg3+ {[%clk 0:00:02]} 53. Kc2 {[%clk 0:00:42]}  Rg2+ {[%clk 0:00:02]} 54. Kb3 {[%clk 0:00:43]}  Rg3+ {[%clk 0:00:02]} 55. Ka2 {[%clk 0:00:43]}  Rg2+ {[%clk 0:00:02]} 56. Ka3 {[%clk 0:00:38]}  Rg3+ {[%clk 0:00:02]} 57. Rb3 {[%clk 0:00:39]}  Rxg4 {[%clk 0:00:03]} 58. Rb5 {[%clk 0:00:37]}  Rh4 {[%clk 0:00:01]} 59. a5 {[%clk 0:00:37]}  Rh1 {[%clk 0:00:01]} 60. Kb4 {[%clk 0:00:36]}  Rh4+ {[%clk 0:00:01]} 61. Ka3 {[%clk 0:00:31]}  Rh3+ {[%clk 0:00:01]} 62. Ka4 {[%clk 0:00:32]}  Rh4+ {[%clk 0:00:01]} 63. Rb4 {[%clk 0:00:32]}  Rxh5 {[%clk 0:00:01]} 64. a6 {[%clk 0:00:33]}  Rh1 {[%clk 0:00:00]} 65. Kb5 {[%clk 0:00:33]} 1-0


[Site "https://www.chess.com"]

[Event "Titled Tuesday Blitz June 20 Early 2023"]
[White "Turzo, Attila"]
[Black "Florescu, Codrut-Constantin"]
[WhiteFideId "704954"]
[BlackFideId "1202200"]
[WhiteElo "2521"]
[BlackElo "2191"]
[Result "1-0"]
[Round "8"]
[TimeControl "180+2"]
[Date "2023.06.20"]
[WhiteClock "0:01:11"]
[BlackClock "0:00:03"]
[Board "73"]

1. d4 {[%clk 0:03:00]}  Nf6 {[%clk 0:02:59]} 2. c4 {[%clk 0:03:01]}  e6 {[%clk 0:02:59]} 3. g3 {[%clk 0:03:01]}  d5 {[%clk 0:02:59]} 4. Bg2 {[%clk 0:03:02]}  Be7 {[%clk 0:03:00]} 5. Nf3 {[%clk 0:03:02]}  O-O {[%clk 0:03:00]} 6. O-O {[%clk 0:03:03]}  c6 {[%clk 0:03:01]} 7. Qc2 {[%clk 0:03:03]}  Nbd7 {[%clk 0:03:01]} 8. Nbd2 {[%clk 0:03:03]}  b6 {[%clk 0:03:01]} 9. e4 {[%clk 0:03:04]}  Bb7 {[%clk 0:03:01]} 10. Rd1 {[%clk 0:03:02]}  Rc8 {[%clk 0:02:59]} 11. e5 {[%clk 0:02:57]}  Ne8 {[%clk 0:02:57]} 12. cxd5 {[%clk 0:02:56]}  exd5 {[%clk 0:02:58]} 13. Nf1 {[%clk 0:02:48]}  Nc7 {[%clk 0:02:57]} 14. h4 {[%clk 0:02:46]}  Ne6 {[%clk 0:02:56]} 15. Ne3 {[%clk 0:02:41]}  c5 {[%clk 0:02:51]} 16. Nf5 {[%clk 0:02:40]}  cxd4 {[%clk 0:02:48]} 17. Qe2 {[%clk 0:02:28]}  Ndc5 {[%clk 0:02:39]} 18. N3xd4 {[%clk 0:02:16]}  Nxd4 {[%clk 0:02:39]} 19. Nxd4 {[%clk 0:02:13]}  Ne6 {[%clk 0:02:27]} 20. Be3 {[%clk 0:02:09]}  Bc5 {[%clk 0:02:25]} 21. Nf5 {[%clk 0:02:02]}  g6 {[%clk 0:01:53]} 22. Nh6+ {[%clk 0:01:48]}  Kg7 {[%clk 0:01:51]} 23. Bxc5 {[%clk 0:01:46]}  bxc5 {[%clk 0:01:45]} 24. Ng4 {[%clk 0:01:43]}  Bc6 {[%clk 0:01:01]} 25. Qd2 {[%clk 0:01:38]}  g5 {[%clk 0:00:23]} 26. Nf6 {[%clk 0:01:26]}  d4 {[%clk 0:00:20]} 27. hxg5 {[%clk 0:01:17]}  Bxg2 {[%clk 0:00:19]} 28. Kxg2 {[%clk 0:01:18]}  h6 {[%clk 0:00:17]} 29. gxh6+ {[%clk 0:01:12]}  Kh8 {[%clk 0:00:03]} 30. Qd3 {[%clk 0:01:11]} 1-0


[Site "https://www.chess.com"]